[Event "CZE-ch U12 2020"]
[Site "Kouty nad Desnou"]
[Date "2020.03.10"]
[Round "5.7"]
[White "Martirosyan, David"]
[Black "Setina, Vaclav"]
[Result "1-0"]
[ECO "B36"]
[WhiteElo "1522"]
[BlackElo "1507"]
[Annotator "NA RC"]
[PlyCount "31"]
[EventDate "2020.03.07"]
[EventCountry "CZE"]
[SourceTitle "playchess.com"]
[Source "ChessBase"]
[SourceQuality "1"]
[TimeControl "5400+30"]

1. e4 {[%emt 0:00:00]} c5 {[%emt 0:00:00]} 2. Nf3 {[%emt 0:00:00]} Nc6 {[%emt 0:00:00]} 3. d4 {[%emt 0:00:07]} cxd4 {[%emt 0:00:00]} 4. Nxd4 {[%emt 0:00:39]} g6 {[%emt 0:00:00]} 5. c4 {[%emt 0:00:59]} Nf6 {[%emt 0:00:00]} 6. Nc3 {[%emt 0:01:20]} Nxd4 {[%emt 0:00:00]} 7. Qxd4 {[%emt 0:01:41]} Bg7 {[%emt 0:00:00]} 8. e5 {[%emt 0:03:47]} Ng8 {[%emt 0:00:42]} 9. Bf4 {[%emt 0:06:35]} d6 {[%emt 0:11:07]} 10. Rd1 {[%emt 0:04:45]} Qb6 {[%emt 0:19:24]} 11. c5 {[%emt 0:17:54]} Qd8 {[%emt 0:26:27]} 12. cxd6 {[%emt 0:05:55]} e6 {[%emt 0:01:42]} 13. Nb5 {[%emt 0:03:00]} Kf8 {[%emt 0:09:10]} 14. Nc7 {[%emt 0:02:41]} Rb8 {[%emt 0:00:04]} 15. d7 {[%emt 0:01:43]} Qxc7 {[%emt 0:01:30]} 16. d8=Q+ {[%emt 0:00:46] Qc6} 1-0

[Event "CZE-ch U12 2020"]
[Site "Kouty nad Desnou"]
[Date "2020.03.10"]
[Round "5.8"]
[White "Tichy, Tomas"]
[Black "Matusik, Ondrej"]
[Result "1-0"]
[ECO "C07"]
[WhiteElo "1810"]
[BlackElo "1482"]
[Annotator "NA"]
[PlyCount "87"]
[EventDate "2020.03.07"]
[EventCountry "CZE"]
[SourceTitle "playchess.com"]
[Source "ChessBase"]
[SourceQuality "1"]
[TimeControl "5400+30"]

{[%evp 8,82,21,29,32767,32767,13,19,32767,8,14,11,16,35,24,10,83,75,92,46,127,60,252,277,258,274,265,232,228,253,242,228,356,398,362,364,351,235,32767,234,241,32767,184,148,172,166,169,168,181,191,203,164,163,153,211,205,32767,166,160,32767,32767,32767,32767,189,32767,32767,32767,32767,157,144,133,145,138,150,32767,173,318]} 1. e4 {[%emt 0:00:00]} e6 {[%emt 0:00:00]} 2. d4 {[%emt 0:00:00]} d5 {[%emt 0:00:00]} 3. Nd2 {[%emt 0:00:10]} c5 {[%emt 0:00:35]} 4. exd5 {[%emt 0:00:11]} Qxd5 {[%emt 0:00:19]} 5. Ngf3 {[%emt 0:00:45]} cxd4 {[%emt 0:00:54]} 6. Bc4 {[%emt 0:00:33]} Qd6 {[%emt 0:00:50]} 7. O-O {[%emt 0:00:21]} Nc6 {[%emt 0:01:14]} 8. Nb3 {[%emt 0:00:59]} (8. Ne4 $5 {[%cal Re4d6]} Qd7 9. Qe2 $14) 8... Nf6 {[%emt 0:01:45]} 9. Nbxd4 {[%emt 0:01:02]} Bd7 {[%emt 0:02:26] C07: French Tarrasch: 3...c5, 4 Ngf3 and 4 exd5 Qxd5.} 10. Nb5 {[%emt 0:00:36]} Qb8 {[%emt 0:01:55]} 11. g3 {[%emt 0:01:08] [#]} Qd8 $146 {[%emt 0:34:24]} ({Predecessor:} 11... a6 12. Bf4 Qxf4 13. gxf4 axb5 14. Bxb5 Rd8 15. Qe2 Be7 16. Ne5 O-O 17. Rfd1 Nd4 18. Rxd4 Bxb5 19. Qd1 Be2 20. Qd2 Ne4 21. Qxe2 Rxd4 22. c3 Ra4 23. Qc2 {1-0 (23) Ljubarskij,J (2305)-Knaak,M Hamburg 1993}) 12. Bf4 {[%emt 0:07:34]} Rc8 {[%emt 0:00:47]} 13. Bd6 {[%emt 0:12:10]} Nb4 {[%emt 0:16:29] [#]} (13... Qb6 $14) 14. Ne5 {[%emt 0:21:04]} ({White should play} 14. Bxf8 $1 $16 Kxf8 15. Nd6 {[%mdl 64] Double Attack}) 14... Nbd5 $2 {[%emt 0:03:25]} ({But not} 14... Rxc4 $2 15. Bxf8 Bxb5 16. Qxd8+ Kxd8 17. Bxg7 $18) ({Better is} 14... Nc6 $1 $14 15. Nxd7 Qxd7) 15. Bxf8 {[%emt 0:05:09]} Kxf8 {[%emt 0:00:16]} 16. Nd6 {[%emt 0:02:16] Double Attack} ({Weaker is} 16. Nxa7 Ra8 $16) 16... Rxc4 {[%emt 0:04:56]} 17. Nxd7+ {[%emt 0:02:57]} Qxd7 {[%emt 0:01:10]} 18. Nxc4 {[%emt 0:00:08]} Ke7 {[%emt 0:02:03]} 19. Qd3 {[%emt 0:04:15]} Rc8 {[%emt 0:01:31]} (19... Qb5 {was necessary.} 20. Rfe1 Ra8) 20. Qa3+ {[%emt 0:02:10] Double Attack} Kd8 {[%emt 0:00:46]} 21. Ne5 {[%emt 0:01:07]} Qe7 {[%emt 0:02:48]} 22. Qd3 {[%emt 0:02:38]} Ke8 {[%emt 0:03:44]} 23. Rad1 {[%emt 0:02:05]} Kf8 {[%emt 0:01:18]} 24. a3 {[%emt 0:06:09]} Qc7 {[%emt 0:01:50]} 25. c4 {[%emt 0:01:22]} Qxe5 {[%emt 0:03:51]} 26. cxd5 {[%emt 0:00:25]} Qxd5 {[%emt 0:00:51] [#]} 27. Qe3 $1 {[%emt 0:01:05]} Qa5 {[%emt 0:01:48] [#]} 28. Rc1 $1 {[%emt 0:01:27]} Rd8 {[%emt 0:02:12]} 29. Rc5 {[%emt 0:01:27]} Qb6 {[%emt 0:01:11]} 30. Rfc1 {[%emt 0:00:45]} Qd6 {[%emt 0:04:59]} 31. Rc8 {[%emt 0:01:42]} b6 {[%emt 0:00:51]} 32. Rxd8+ {[%emt 0:00:31]} Qxd8 {[%emt 0:00:09]} 33. Qb3 {[%emt 0:00:14]} Qd7 {[%emt 0:00:59]} 34. Rd1 {[%emt 0:00:18]} Qe8 {[%emt 0:01:12]} 35. Qb4+ {[%emt 0:00:26]} Kg8 {[%emt 0:00:18]} 36. Qd6 {[%emt 0:00:19]} Nd5 {[%emt 0:00:39]} 37. Qe5 {[%emt 0:00:33]} Qc8 {[%emt 0:01:07]} 38. Qe2 {[%emt 0:02:13]} Kf8 {[%emt 0:01:27]} 39. Qd3 {[%emt 0:01:15]} Kg8 {[%emt 0:00:23]} 40. Qd2 {[%emt 0:01:11]} Qb7 {[%emt 0:00:54]} 41. Rc1 {[%emt 0:01:00]} Qd7 $18 {[%emt 0:01:17]} (41... h6 {is a better defense.} 42. Qc2 Qe7) 42. Qe2 {[%emt 0:00:45]} Qb7 {[%emt 0:00:42]} 43. Qb5 {[%emt 0:00:18]} Qb8 {[%emt 0:00:35]} 44. Qd7 {[%emt 0:00:42]} 1-0

[Event "CZE-ch U12 2020"]
[Site "Kouty nad Desnou"]
[Date "2020.03.10"]
[Round "5.9"]
[White "Kubin, Tomas Daniel"]
[Black "Sedmihradsky, Tomas"]
[Result "1/2-1/2"]
[ECO "C55"]
[WhiteElo "1484"]
[BlackElo "1024"]
[Annotator "NA"]
[PlyCount "60"]
[EventDate "2020.03.07"]
[EventCountry "CZE"]
[SourceTitle "playchess.com"]
[Source "ChessBase"]
[SourceQuality "1"]
[TimeControl "5400+30"]

1. e4 {[%emt 0:00:00]} e5 {[%emt 0:00:00]} 2. Nf3 {[%emt 0:00:00]} Nc6 {[%emt 0:00:00]} 3. d4 {[%emt 0:00:00]} exd4 {[%emt 0:00:00]} 4. Bc4 {[%emt 0:00:00]} Nf6 {[%emt 0:00:01]} 5. e5 {[%emt 0:00:00]} Ne4 {[%emt 0:00:04]} 6. Bd5 {[%emt 0:00:06]} Nc5 {[%emt 0:01:33]} 7. O-O {[%emt 0:03:23]} Be7 {[%emt 0:01:03]} 8. Bxc6 {[%emt 0:05:25]} dxc6 {[%emt 0:00:18]} 9. Nxd4 {[%emt 0:00:50]} Ne6 {[%emt 0:01:10]} 10. Be3 {[%emt 0:11:14]} Nxd4 {[%emt 0:01:45]} 11. Bxd4 {[%emt 0:00:25]} b6 {[%emt 0:01:21]} 12. Nc3 {[%emt 0:05:05]} c5 {[%emt 0:01:32]} 13. Be3 {[%emt 0:00:18]} Ba6 {[%emt 0:02:33]} 14. Re1 {[%emt 0:02:50]} O-O {[%emt 0:01:53]} 15. Qg4 {[%emt 0:03:15]} f5 {[%emt 0:07:00]} 16. exf6 {[%emt 0:05:09]} Bxf6 {[%emt 0:01:04]} 17. Rad1 {[%emt 0:03:36]} Qc8 {[%emt 0:02:53]} 18. Qg3 {[%emt 0:12:58]} Bxc3 {[%emt 0:07:41]} 19. bxc3 {[%emt 0:00:39]} Rf7 {[%emt 0:00:38]} 20. Bg5 {[%emt 0:06:00]} Qf5 {[%emt 0:12:08]} 21. Rd2 {[%emt 0:05:46]} Bb5 {[%emt 0:07:23]} 22. Red1 {[%emt 0:05:12]} Re8 {[%emt 0:04:17]} 23. h3 {[%emt 0:01:51]} Ba4 {[%emt 0:07:50]} 24. Rd8 {[%emt 0:04:36]} Qxc2 {[%emt 0:04:43]} 25. Rxe8+ {[%emt 0:02:14]} Bxe8 {[%emt 0:00:18]} 26. Rd8 {[%emt 0:00:25]} Qa4 {[%emt 0:05:40]} 27. Qe5 {[%emt 0:04:24]} Kf8 {[%emt 0:02:53]} 28. c4 {[%emt 0:07:42]} Qc6 {[%emt 0:01:51]} 29. f4 {[%emt 0:02:16]} h6 {[%emt 0:02:53]} 30. Bh4 {[%emt 0:00:25]} a6 {[%emt 0:00:35]} 1/2-1/2

[Event "CZE-ch U12 2020"]
[Site "Kouty nad Desnou"]
[Date "2020.03.10"]
[Round "5.10"]
[White "Buchta, Bartolomej"]
[Black "Babula, Matej"]
[Result "1-0"]
[ECO "C75"]
[WhiteElo "1508"]
[BlackElo "1353"]
[Annotator "NA RC"]
[PlyCount "35"]
[EventDate "2020.03.07"]
[EventCountry "CZE"]
[SourceTitle "playchess.com"]
[Source "ChessBase"]
[SourceQuality "1"]
[TimeControl "5400+30"]

1. e4 {[%emt 0:00:00]} e5 {[%emt 0:00:00]} 2. Nf3 {[%emt 0:00:00]} Nc6 {[%emt 0:00:00]} 3. Bb5 {[%emt 0:00:00]} a6 {[%emt 0:00:00]} 4. Ba4 {[%emt 0:00:00]} d6 {[%emt 0:00:00]} 5. c3 {[%emt 0:00:28]} Bd7 {[%emt 0:00:31]} 6. O-O {[%emt 0:00:22]} Nge7 {[%emt 0:00:48]} 7. d4 {[%emt 0:00:19]} g6 {[%emt 0:00:36]} 8. Bb3 {[%emt 0:00:31]} Bg7 {[%emt 0:00:38]} 9. Ng5 {[%emt 0:00:43]} O-O {[%emt 0:01:54]} 10. f4 {[%emt 0:00:19]} Be8 {[%emt 0:15:45]} 11. f5 {[%emt 0:06:51]} h6 {[%emt 0:08:16]} 12. Nh3 {[%emt 0:13:43]} Nc8 {[%emt 0:02:31]} 13. fxg6 {[%emt 0:04:39]} exd4 {[%emt 0:05:28]} 14. Qh5 {[%emt 0:05:41]} Qe7 {[%emt 0:10:09]} 15. Bxh6 {[%emt 0:03:57]} Qe5 {[%emt 0:01:31]} 16. Bg5 {[%emt 0:05:32]} Bh6 {[%emt 0:01:57]} 17. gxf7+ {[%emt 0:00:40]} Bxf7 {[%emt 0:01:15]} 18. Bxf7+ {[%emt 0:00:12]} 1-0

[Event "CZE-ch U12 2020"]
[Site "Kouty nad Desnou"]
[Date "2020.03.10"]
[Round "5.11"]
[White "Sigut, Ondrej"]
[Black "Matus, Jakub"]
[Result "1/2-1/2"]
[ECO "B31"]
[WhiteElo "1274"]
[BlackElo "1240"]
[Annotator "NA"]
[PlyCount "62"]
[EventDate "2020.03.07"]
[EventCountry "CZE"]
[SourceTitle "playchess.com"]
[Source "ChessBase"]
[SourceQuality "1"]
[TimeControl "5400+30"]

1. e4 {[%emt 0:00:00]} c5 {[%emt 0:00:00]} 2. Nf3 {[%emt 0:00:00]} Nc6 {[%emt 0:00:00]} 3. Bb5 {[%emt 0:00:00]} g6 {[%emt 0:00:00]} 4. Bxc6 {[%emt 0:00:01]} dxc6 {[%emt 0:00:00]} 5. O-O {[%emt 0:00:23]} Bg7 {[%emt 0:00:01]} 6. Re1 {[%emt 0:01:06]} Nf6 {[%emt 0:00:15]} 7. h3 {[%emt 0:02:03]} O-O {[%emt 0:01:57]} 8. d3 {[%emt 0:01:15]} Re8 {[%emt 0:01:13]} 9. Bg5 {[%emt 0:01:10]} Qb6 {[%emt 0:06:26]} 10. Bc1 {[%emt 0:07:05]} e5 {[%emt 0:03:33]} 11. Nbd2 {[%emt 0:02:27]} Qc7 {[%emt 0:04:35]} 12. Nf1 {[%emt 0:02:42]} b6 {[%emt 0:02:52]} 13. Be3 {[%emt 0:02:13]} Ba6 {[%emt 0:02:35]} 14. Ng3 {[%emt 0:03:26]} Rad8 {[%emt 0:02:22]} 15. Qc1 {[%emt 0:02:40]} Nd7 {[%emt 0:05:04]} 16. Bh6 {[%emt 0:02:01]} f6 {[%emt 0:02:16]} 17. Bxg7 {[%emt 0:01:09]} Kxg7 {[%emt 0:00:07]} 18. Nh2 {[%emt 0:01:31]} h5 {[%emt 0:03:02]} 19. Nf3 {[%emt 0:02:09]} c4 {[%emt 0:02:37]} 20. dxc4 {[%emt 0:04:09]} Bxc4 {[%emt 0:00:08]} 21. Qe3 Nc5 {[%emt 0:03:31]} 22. a3 {[%emt 0:04:42]} Ne6 {[%emt 0:02:51]} 23. Nf1 {[%emt 0:10:20]} Qc8 {[%emt 0:05:42]} 24. Rad1 {[%emt 0:07:36]} Nf4 {[%emt 0:02:57]} 25. Ng3 {[%emt 0:04:09]} Be6 {[%emt 0:04:07]} 26. Ne2 {[%emt 0:04:22]} Nxe2+ {[%emt 0:02:00]} 27. Qxe2 {[%emt 0:00:33]} Rxd1 {[%emt 0:02:36]} 28. Rxd1 {[%emt 0:00:18]} Rd8 {[%emt 0:00:22]} 29. Kh2 {[%emt 0:03:04]} Bf7 {[%emt 0:01:10]} 30. Rd2 {[%emt 0:02:10]} Re8 {[%emt 0:01:10]} 31. Qd1 {[%emt 0:00:29]} Be6 {[%emt 0:00:25]} 1/2-1/2

[Event "CZE-ch U12 2020"]
[Site "Kouty nad Desnou"]
[Date "2020.03.10"]
[Round "5.12"]
[White "Hobza, Richard"]
[Black "Tesar, Jakub"]
[Result "1/2-1/2"]
[ECO "D05"]
[WhiteElo "1251"]
[BlackElo "1446"]
[Annotator "NA"]
[PlyCount "80"]
[EventDate "2020.03.07"]
[EventCountry "CZE"]
[SourceTitle "playchess.com"]
[Source "ChessBase"]
[SourceQuality "1"]
[TimeControl "5400+30"]

1. d4 {[%emt 0:00:00]} d5 {[%emt 0:00:00]} 2. Nf3 {[%emt 0:00:00]} Nf6 {[%emt 0:00:04]} 3. e3 {[%emt 0:00:12]} e6 {[%emt 0:01:06]} 4. Bd3 {[%emt 0:01:03]} c5 {[%emt 0:01:29]} 5. c3 {[%emt 0:00:51]} Nc6 {[%emt 0:02:00]} 6. Nbd2 {[%emt 0:03:21]} b6 {[%emt 0:06:33]} 7. O-O {[%emt 0:05:47]} Bb7 {[%emt 0:03:18]} 8. Qe2 {[%emt 0:05:28]} Nh5 {[%emt 0:16:29]} 9. Bc2 {[%emt 0:12:44]} f5 {[%emt 0:04:26]} 10. Ne5 {[%emt 0:05:34]} Nxe5 {[%emt 0:00:29]} 11. dxe5 {[%emt 0:00:12]} g6 {[%emt 0:00:08]} 12. f4 {[%emt 0:15:01]} Rc8 {[%emt 0:06:22]} 13. Nf3 {[%emt 0:09:53]} Be7 {[%emt 0:02:18]} 14. Ba4+ {[%emt 0:05:11]} Kf7 {[%emt 0:00:49]} 15. Rd1 {[%emt 0:02:27]} Qc7 {[%emt 0:04:35]} 16. c4 {[%emt 0:05:14]} Rhd8 {[%emt 0:03:12]} 17. Bc2 {[%emt 0:01:57]} dxc4 {[%emt 0:10:06]} 18. Qxc4 {[%emt 0:03:21]} Rxd1+ {[%emt 0:00:29]} 19. Bxd1 {[%emt 0:00:14]} Qd7 {[%emt 0:01:10]} 20. Qf1 {[%emt 0:01:37]} Rd8 {[%emt 0:01:42]} 21. Be2 {[%emt 0:00:44]} Be4 {[%emt 0:03:11]} 22. b3 {[%emt 0:01:36]} Ng7 {[%emt 0:03:38]} 23. Bb2 {[%emt 0:01:29]} Ne8 {[%emt 0:00:33]} 24. Rd1 {[%emt 0:00:52]} Qc8 {[%emt 0:00:33]} 25. Rxd8 {[%emt 0:05:02]} Qxd8 {[%emt 0:00:11]} 26. Qe1 {[%emt 0:01:08]} Nc7 {[%emt 0:01:16]} 27. Nd2 {[%emt 0:01:08]} Bc6 {[%emt 0:03:08]} 28. Bf3 {[%emt 0:02:07]} Bxf3 {[%emt 0:01:07]} 29. Nxf3 {[%emt 0:00:16]} Qd3 {[%emt 0:00:24]} 30. g3 {[%emt 0:02:03]} Nd5 {[%emt 0:01:12]} 31. Kf2 {[%emt 0:00:46]} c4 {[%emt 0:01:08]} 32. bxc4 {[%emt 0:01:34]} Qxc4 {[%emt 0:00:10]} 33. a3 {[%emt 0:00:40]} Bc5 {[%emt 0:00:13]} 34. Nd4 {[%emt 0:02:51]} Qd3 {[%emt 0:02:56]} 35. Qe2 {[%emt 0:01:10]} Qe4 {[%emt 0:01:24]} 36. Qf3 {[%emt 0:01:38]} Qb1 {[%emt 0:01:45]} 37. Qe2 {[%emt 0:00:52]} Qh1 {[%emt 0:03:10]} 38. h4 {[%emt 0:01:16]} Qh2+ {[%emt 0:01:11]} 39. Kf3 {[%emt 0:00:03]} Qh1+ {[%emt 0:00:09]} 40. Kf2 {[%emt 0:00:10]} Qb1 1/2-1/2

[Event "CZE-ch U12 2020"]
[Site "Kouty nad Desnou"]
[Date "2020.03.11"]
[Round "6.2"]
[White "Juhanak, Daniel"]
[Black "Fizer, Marek"]
[Result "1-0"]
[ECO "B63"]
[WhiteElo "1656"]
[BlackElo "1907"]
[Annotator "ChessBase"]
[PlyCount "77"]
[EventDate "2020.03.07"]
[EventCountry "CZE"]
[SourceTitle "playchess.com"]
[Source "ChessBase"]
[SourceQuality "1"]
[TimeControl "5400+30"]

1. e4 {[%emt 0:00:05]} c5 {[%emt 0:00:05]} 2. Nf3 {[%emt 0:01:32]} d6 {[%emt 0:00:10]} 3. d4 {[%emt 0:00:43]} cxd4 {[%emt 0:00:08]} 4. Nxd4 {[%emt 0:00:22]} Nf6 {[%emt 0:00:38]} 5. Nc3 {[%emt 0:00:35]} Nc6 {[%emt 0:00:31]} 6. Bg5 {[%emt 0:01:03]} e6 {[%emt 0:00:24]} 7. Qd2 {[%emt 0:01:16]} Bd7 {[%emt 0:00:24]} 8. Ndb5 {[%emt 0:05:46]} Nb4 {[%emt 0:07:57]} 9. Bxf6 {[%emt 0:02:56]} gxf6 {[%emt 0:00:14]} 10. O-O-O {[%emt 0:06:20]} Bxb5 {[%emt 0:03:09]} 11. Nxb5 {[%emt 0:14:23]} d5 {[%emt 0:02:25]} 12. a3 {[%emt 0:01:13]} Na6 {[%emt 0:10:46]} 13. exd5 {[%emt 0:09:18]} exd5 {[%emt 0:02:14]} 14. Qxd5 {[%emt 0:10:44]} Qxd5 {[%emt 0:03:52]} 15. Rxd5 {[%emt 0:00:37]} Rd8 {[%emt 0:00:40]} 16. Rxd8+ {[%emt 0:04:43]} Kxd8 {[%emt 0:00:05]} 17. Bc4 {[%emt 0:01:25]} Bh6+ {[%emt 0:01:56]} 18. Kb1 {[%emt 0:01:10]} Nc5 {[%emt 0:07:38]} 19. Nd6 {[%emt 0:02:25]} Rg8 {[%emt 0:01:12]} 20. Nxf7+ {[%emt 0:00:23]} Kc7 {[%emt 0:00:09]} 21. Nxh6 {[%emt 0:00:30]} Rxg2 {[%emt 0:00:09]} 22. f3 {[%emt 0:01:09]} Kd6 {[%emt 0:02:57]} 23. Ng4 {[%emt 0:01:24]} f5 {[%emt 0:01:35]} 24. Ne3 {[%emt 0:02:09]} Rf2 {[%emt 0:00:48]} 25. Rd1+ {[%emt 0:05:57]} Ke7 {[%emt 0:02:47]} 26. Nxf5+ {[%emt 0:02:41]} Kf6 {[%emt 0:01:11]} 27. Rd6+ {[%emt 0:03:04]} Kxf5 {[%emt 0:00:56]} 28. Rd5+ {[%emt 0:00:10]} Kf4 {[%emt 0:00:18]} 29. Rxc5 {[%emt 0:00:26]} Rxh2 {[%emt 0:00:25]} 30. Bf7 {[%emt 0:00:49]} Kxf3 {[%emt 0:00:37]} 31. Rh5 {[%emt 0:01:58]} Rd2 {[%emt 0:01:40]} 32. Rxh7 {[%emt 0:00:18]} b5 {[%emt 0:02:12]} 33. Bh5+ {[%emt 0:00:37]} Ke4 {[%emt 0:00:27]} 34. Rxa7 {[%emt 0:00:14]} Rd5 {[%emt 0:00:15]} 35. Bg6+ {[%emt 0:00:14]} Kd4 {[%emt 0:00:26]} 36. Bd3 {[%emt 0:00:13]} Kc5 {[%emt 0:01:08]} 37. Ra5 {[%emt 0:00:07]} Kb6 {[%emt 0:00:11]} 38. Rxb5+ {[%emt 0:00:05]} Rxb5 {[%emt 0:00:09]} 39. Bxb5 {[%emt 0:00:04]} 1-0

[Event "CZE-ch U12 2020"]
[Site "Kouty nad Desnou"]
[Date "2020.03.11"]
[Round "6.4"]
[White "Day, Tobias"]
[Black "Zelba, Lukas"]
[Result "0-1"]
[ECO "A46"]
[WhiteElo "1837"]
[BlackElo "1727"]
[Annotator "NA RC"]
[PlyCount "76"]
[EventDate "2020.03.07"]
[EventCountry "CZE"]
[SourceTitle "playchess.com"]
[Source "ChessBase"]
[SourceQuality "1"]
[TimeControl "5400+30"]

{[%evp 9,73,-5,30,20,23,12,36,22,39,19,50,47,32767,32767,32767,32767,32767,32767,32767,28,34,31,11,0,0,-2,34,22,156,141,147,24,31,27,26,12,12,34,95,32,11,-41,0,-13,0,0,32767,-11,0,-29,0,0,43,-99,-79,-96,0,0,0,-19,0,0,0,-32,-29,-908]} 1. d4 {[%emt 0:00:00]} Nf6 {[%emt 0:00:11]} 2. Nf3 {[%emt 0:00:00]} e6 {[%emt 0:00:05]} 3. Bg5 {[%emt 0:00:00]} h6 {[%emt 0:00:08]} 4. Bh4 {[%emt 0:00:28]} b6 {[%emt 0:01:42]} 5. Nbd2 {[%emt 0:02:47]} g5 {[%emt 0:00:19]} 6. Bg3 {[%emt 0:00:55] A46: 1 d4 Nf6 2 Nf3 e6: Torre, London and Colle Systems.} Bb7 {[%emt 0:01:16]} 7. e3 {[%emt 0:02:08]} d6 {[%emt 0:05:11]} 8. h3 {[%emt 0:07:49]} Nbd7 {[%emt 0:03:18]} 9. Bd3 {[%emt 0:04:24] [#]} c5 $146 {[%emt 0:02:59]} ({Predecessor:} 9... Qe7 10. Qe2 a6 11. O-O-O Bg7 12. Kb1 b5 13. e4 Nh5 14. Bh2 c5 15. c3 Nf4 16. Bxf4 gxf4 {0-1 (60) Lilov,V (2411)-Komarov,D (2530) Varna 2009}) 10. c3 {[%emt 0:02:24]} Nh5 {[%emt 0:21:11]} 11. e4 {[%emt 0:04:55]} Nxg3 {[%emt 0:00:26]} 12. fxg3 {[%emt 0:00:11]} Nf6 {[%emt 0:01:35]} 13. Bb5+ {[%emt 0:02:36]} Nd7 {[%emt 0:00:12] [#]} 14. dxc5 {[%emt 0:02:56]} (14. Nc4 $1 $16) 14... bxc5 {[%emt 0:00:44]} 15. Nc4 {[%emt 0:01:13]} Qc7 {[%emt 0:00:55]} 16. Qd3 {[%emt 0:03:00]} O-O-O {[%emt 0:00:49]} 17. O-O-O {[%emt 0:01:04]} Nb6 {[%emt 0:02:00]} 18. Na5 {[%emt 0:03:39]} Nd7 {[%emt 0:05:23]} (18... Bg7 $14) 19. Nxb7 {[%emt 0:01:30]} Kxb7 {[%emt 0:00:08]} 20. Nd2 {[%emt 0:06:06]} ({White should play} 20. Bxd7 $16 Rxd7 21. Ne5 {[%mdl 64] Pin}) 20... Ne5 {[%emt 0:01:46]} 21. Qc2 {[%emt 0:04:54]} c4 {[%emt 0:02:29]} 22. Nf3 {[%emt 0:01:58]} Nd3+ {[%emt 0:03:42]} 23. Kb1 {[%emt 0:09:40]} Qb6 {[%emt 0:00:10]} (23... d5 $11 {remains equal.}) 24. Nd4 {[%emt 0:00:35]} (24. Bxc4 $16 Nf2 {[%mdl 64] Double Attack} 25. Rd5 exd5 26. Bxd5+ {[%mdl 64] Double Attack} Kb8 27. Rf1) 24... Ne5 $1 {[%emt 0:04:17]} 25. Ba4 {[%emt 0:11:53]} Be7 {[%emt 0:03:14]} 26. Ka1 {[%emt 0:07:53]} Rc8 {[%emt 0:01:40]} 27. Rb1 {[%emt 0:02:15]} Ka8 {[%emt 0:02:26]} 28. Rhd1 {[%emt 0:01:35]} Rc5 {[%emt 0:01:03]} 29. b4 {[%emt 0:02:27]} cxb3 {[%emt 0:00:17]} 30. Rxb3 {[%emt 0:00:26]} Qa5 {[%emt 0:03:17]} 31. Bb5 {[%emt 0:02:21]} (31. Rdb1 $11 Qc7 32. Qb2) 31... Rhc8 {[%emt 0:00:52]} 32. Kb2 {[%emt 0:04:31]} Nc4+ {[%emt 0:05:32]} ({Black should play} 32... Bf6 $17 33. a3 g4) 33. Bxc4 $1 {[%emt 0:00:13]} Rxc4 {[%emt 0:00:05]} 34. Rd3 {[%emt 0:00:58]} Bf6 {[%emt 0:00:16]} 35. Nb5 $1 {[%emt 0:01:25]} Ra4 {[%emt 0:01:44]} 36. a3 {[%emt 0:00:34]} Rb8 {[%emt 0:00:51]} 37. Nxd6 $19 {[%emt 0:04:37]} (37. Nd4 $15 Rb6 38. Rxb6 axb6 39. Qb3) 37... Rxa3 {[%emt 0:01:00]} 38. Rxb8+ {[%emt 0:01:23]} Kxb8 {[%emt 0:00:22]} 0-1